[Event "*** Titled Tuesday Blitz"]
[Site "Chess.com"]
[Date "2021.04.27"]
[Round "4"]
[White "IMRosen"]
[Black "RiskyDecision"]
[Result "0-1"]
[WhiteElo "2663"]
[BlackElo "2531"]
[TimeControl "180+1"]
[EndTime "10:40:21 PDT"]
[Termination "RiskyDecision won on time"]

1. e4 {[%clk 0:02:54.6]} 1... c5 {[%clk 0:02:58.9]} 2. Nc3 {[%clk 0:02:46.9]}
2... e6 {[%clk 0:02:58.8]} 3. g3 {[%clk 0:02:44.7]} 3... Nc6 {[%clk 0:02:55.2]}
4. Bg2 {[%clk 0:02:43.7]} 4... d6 {[%clk 0:02:55.3]} 5. Nge2 {[%clk 0:02:42.6]}
5... Nf6 {[%clk 0:02:52.5]} 6. O-O {[%clk 0:02:41.9]} 6... Be7 {[%clk
0:02:47.9]} 7. d4 {[%clk 0:02:40.9]} 7... cxd4 {[%clk 0:02:48.5]} 8. Nxd4 {[%clk
0:02:41.4]} 8... Nxd4 {[%clk 0:02:48]} 9. Qxd4 {[%clk 0:02:41.1]} 9... O-O
{[%clk 0:02:48.6]} 10. h3 {[%clk 0:02:26.8]} 10... e5 {[%clk 0:02:49.1]} 11. Qd3
{[%clk 0:02:26.5]} 11... Be6 {[%clk 0:02:49]} 12. Be3 {[%clk 0:02:26.1]} 12...
Rc8 {[%clk 0:02:44.1]} 13. Rfe1 {[%clk 0:02:21.1]} 13... a6 {[%clk 0:02:35.3]}
14. Nd5 {[%clk 0:02:07.4]} 14... Bxd5 {[%clk 0:02:30.7]} 15. exd5 {[%clk
0:02:06.5]} 15... Nd7 {[%clk 0:02:27.3]} 16. c4 {[%clk 0:02:00.2]} 16... Bg5
{[%clk 0:02:26.3]} 17. Bxg5 {[%clk 0:01:27.3]} 17... Qxg5 {[%clk 0:02:25.2]} 18.
h4 {[%clk 0:01:27.8]} 18... Qd8 {[%clk 0:02:13.3]} 19. Bh3 {[%clk 0:01:15.2]}
19... Nc5 {[%clk 0:02:13.3]} 20. Qc2 {[%clk 0:01:11.8]} 20... Rc7 {[%clk
0:02:08.2]} 21. b4 {[%clk 0:01:11.4]} 21... Nd7 {[%clk 0:02:06.5]} 22. Qd3
{[%clk 0:01:08.9]} 22... g6 {[%clk 0:02:00.8]} 23. Rac1 {[%clk 0:01:01.1]} 23...
f5 {[%clk 0:01:58.8]} 24. h5 {[%clk 0:01:01.2]} 24... Qg5 {[%clk 0:01:52.1]} 25.
hxg6 {[%clk 0:00:47]} 25... hxg6 {[%clk 0:01:51.7]} 26. c5 {[%clk 0:00:47.3]}
26... e4 {[%clk 0:01:40]} 27. Qb3 {[%clk 0:00:36.2]} 27... Ne5 {[%clk
0:01:36.4]} 28. Bg2 {[%clk 0:00:36.3]} 28... Nd3 {[%clk 0:01:34.5]} 29. Rcd1
{[%clk 0:00:25]} 29... Nxe1 {[%clk 0:01:34.4]} 30. Rxe1 {[%clk 0:00:25.9]} 30...
Qf6 {[%clk 0:01:31.1]} 31. Rc1 {[%clk 0:00:22.1]} 31... Kg7 {[%clk 0:01:28.2]}
32. a4 {[%clk 0:00:19.4]} 32... Rfc8 {[%clk 0:01:23]} 33. Qe3 {[%clk 0:00:11.8]}
33... Qb2 {[%clk 0:01:10.3]} 34. Rc4 {[%clk 0:00:08.1]} 34... Qa1+ {[%clk
0:01:02.8]} 35. Bf1 {[%clk 0:00:08.3]} 35... Qe5 {[%clk 0:00:54.6]} 36. Rc1
{[%clk 0:00:04.9]} 36... Qxd5 {[%clk 0:00:51.5]} 37. Bc4 {[%clk 0:00:04.9]}
37... Qe5 {[%clk 0:00:49.7]} 38. Bb3 {[%clk 0:00:02]} 38... dxc5 {[%clk
0:00:46.5]} 39. b5 {[%clk 0:00:02.1]} 39... axb5 {[%clk 0:00:44.3]} 40. axb5
{[%clk 0:00:02.4]} 40... c4 {[%clk 0:00:43.9]} 41. b6 {[%clk 0:00:02.8]} 41...
Rc5 {[%clk 0:00:41]} 42. Ba4 {[%clk 0:00:03.4]} 42... c3 {[%clk 0:00:40.6]} 43.
Rd1 {[%clk 0:00:02.2]} 43... Rd5 {[%clk 0:00:36.8]} 44. Rc1 {[%clk 0:00:01.9]}
44... Qd4 {[%clk 0:00:33.6]} 45. Qg5 {[%clk 0:00:02.2]} 45... Qf6 {[%clk
0:00:24.7]} 46. Qf4 {[%clk 0:00:02.8]} 46... c2 {[%clk 0:00:20.9]} 47. Bb3
{[%clk 0:00:03]} 47... Rd3 {[%clk 0:00:18.7]} 48. Ba4 {[%clk 0:00:02.8]} 48...
Rd1+ {[%clk 0:00:17.8]} 49. Rxd1 {[%clk 0:00:02.8]} 49... cxd1=Q+ {[%clk
0:00:18.2]} 50. Bxd1 {[%clk 0:00:03.7]} 50... Rc6 {[%clk 0:00:15]} 51. Be2
{[%clk 0:00:03.2]} 51... Qd6 {[%clk 0:00:12.9]} 52. Qe3 {[%clk 0:00:02.6]} 52...
Rxb6 {[%clk 0:00:12.3]} 53. Kg2 {[%clk 0:00:02.7]} 53... Qf6 {[%clk 0:00:11.7]}
54. Qc5 {[%clk 0:00:02.8]} 54... g5 {[%clk 0:00:11.5]} 55. Qc7+ {[%clk
0:00:02.6]} 55... Kg6 {[%clk 0:00:11.9]} 56. Bc4 {[%clk 0:00:02.6]} 56... f4
{[%clk 0:00:11]} 57. Bf7+ {[%clk 0:00:03.1]} 57... Kh6 {[%clk 0:00:09.5]} 58.
Bg8 {[%clk 0:00:02.9]} 58... Qg6 {[%clk 0:00:08.9]} 59. Bf7 {[%clk 0:00:02.2]}
59... f3+ {[%clk 0:00:08.9]} 60. Kh3 {[%clk 0:00:01.8]} 60... g4+ {[%clk
0:00:09.1]} 61. Kh2 {[%clk 0:00:01.5]} 61... Qf6 {[%clk 0:00:08.8]} 0-1

[Event "*** Titled Tuesday Blitz"]
[Site "Chess.com"]
[Date "2021.04.27"]
[Round "4"]
[White "Make_it_shine060"]
[Black "A-S-00"]
[Result "0-1"]
[WhiteElo "2176"]
[BlackElo "2321"]
[TimeControl "180+1"]
[EndTime "10:40:21 PDT"]
[Termination "A-S-00 won on time"]

1. d4 {[%clk 0:03:00.9]} 1... f6 {[%clk 0:02:58]} 2. c4 {[%clk 0:03:00.3]} 2...
g6 {[%clk 0:02:55.1]} 3. e4 {[%clk 0:02:58.9]} 3... Bg7 {[%clk 0:02:33.4]} 4.
Nc3 {[%clk 0:02:57]} 4... d6 {[%clk 0:02:28.2]} 5. f4 {[%clk 0:02:53.1]} 5... f5
{[%clk 0:02:15.3]} 6. e5 {[%clk 0:02:50.3]} 6... dxe5 {[%clk 0:02:14.1]} 7. dxe5
{[%clk 0:02:49.9]} 7... Qxd1+ {[%clk 0:02:11.3]} 8. Nxd1 {[%clk 0:02:49.3]} 8...
c6 {[%clk 0:02:06.5]} 9. Nf3 {[%clk 0:02:48.6]} 9... b6 {[%clk 0:02:00.2]} 10.
Nc3 {[%clk 0:02:44.2]} 10... Na6 {[%clk 0:01:56.8]} 11. Be3 {[%clk 0:02:39.5]}
11... Nc7 {[%clk 0:01:54.8]} 12. O-O-O {[%clk 0:02:35.6]} 12... Nh6 {[%clk
0:01:50]} 13. h3 {[%clk 0:02:34.2]} 13... Nf7 {[%clk 0:01:40.5]} 14. Rg1 {[%clk
0:02:31.8]} 14... Bb7 {[%clk 0:01:24.1]} 15. Be2 {[%clk 0:02:26.4]} 15... Rd8
{[%clk 0:01:11.7]} 16. Nd4 {[%clk 0:02:23.2]} 16... c5 {[%clk 0:01:00.3]} 17.
Ndb5 {[%clk 0:02:21.6]} 17... Nxb5 {[%clk 0:01:00.7]} 18. Nxb5 {[%clk
0:02:20.5]} 18... O-O {[%clk 0:01:01.3]} 19. Bf3 {[%clk 0:01:54.6]} 19... Bxf3
{[%clk 0:00:53.9]} 20. gxf3 {[%clk 0:01:54.1]} 20... Bh6 {[%clk 0:00:54.5]} 21.
Rde1 {[%clk 0:01:10.8]} 21... Rd3 {[%clk 0:00:47.5]} 22. Kc2 {[%clk 0:01:10.1]}
22... Rfd8 {[%clk 0:00:47.2]} 23. e6 {[%clk 0:01:01.8]} 23... Ne5 {[%clk
0:00:35.9]} 24. fxe5 {[%clk 0:00:33.5]} 24... Bxe3 {[%clk 0:00:34.7]} 25. Rg2
{[%clk 0:00:33.1]} 25... Bf4 {[%clk 0:00:23.4]} 26. Nxa7 {[%clk 0:00:23.2]}
26... Rxf3 {[%clk 0:00:21.6]} 27. Nc6 {[%clk 0:00:20.8]} 27... Re8 {[%clk
0:00:16.3]} 28. Rd1 {[%clk 0:00:20.6]} 28... Rxh3 {[%clk 0:00:15.9]} 29. Rd7
{[%clk 0:00:19.8]} 29... Kf8 {[%clk 0:00:16.2]} 30. Nd8 {[%clk 0:00:19.1]} 30...
Rh2 {[%clk 0:00:15.5]} 31. Rxh2 {[%clk 0:00:17.7]} 31... Bxh2 {[%clk 0:00:16.1]}
32. Nf7 {[%clk 0:00:17.9]} 32... f4 {[%clk 0:00:13.5]} 33. Rd2 {[%clk
0:00:17.3]} 33... Bg3 {[%clk 0:00:13.7]} 34. Rg2 {[%clk 0:00:16]} 34... Kg7
{[%clk 0:00:13.6]} 35. Ng5 {[%clk 0:00:14.3]} 35... h6 {[%clk 0:00:13.5]} 36.
Ne4 {[%clk 0:00:14.1]} 36... Bh4 {[%clk 0:00:12.4]} 37. a3 {[%clk 0:00:12.7]}
37... f3 {[%clk 0:00:12.7]} 38. Rh2 {[%clk 0:00:12.9]} 38... g5 {[%clk
0:00:12.4]} 39. b4 {[%clk 0:00:08.6]} 39... Rd8 {[%clk 0:00:10.9]} 40. bxc5
{[%clk 0:00:07.4]} 40... bxc5 {[%clk 0:00:11.5]} 41. a4 {[%clk 0:00:04.6]} 41...
Rd4 {[%clk 0:00:08.9]} 42. Nf2 {[%clk 0:00:03.5]} 42... Rxc4+ {[%clk 0:00:08]}
43. Kb3 {[%clk 0:00:03.6]} 43... Rb4+ {[%clk 0:00:08.4]} 44. Ka3 {[%clk
0:00:03.4]} 44... Bg3 {[%clk 0:00:07.9]} 45. Rh3 {[%clk 0:00:01.5]} 45... Bxf2
{[%clk 0:00:08]} 46. Rxf3 {[%clk 0:00:01.7]} 46... Bd4 {[%clk 0:00:08.6]} 47.
Rf7+ {[%clk 0:00:01.6]} 47... Kg6 {[%clk 0:00:09.3]} 48. Rxe7 {[%clk 0:00:01.7]}
48... Bxe5 {[%clk 0:00:09.7]} 0-1

[Event "*** Titled Tuesday Blitz"]
[Site "Chess.com"]
[Date "2021.04.27"]
[Round "4"]
[White "Zallio"]
[Black "Piccadilly123"]
[Result "0-1"]
[WhiteElo "2064"]
[BlackElo "2269"]
[TimeControl "180+1"]
[EndTime "10:40:22 PDT"]
[Termination "Piccadilly123 won on time"]

1. e4 {[%clk 0:03:00.9]} 1... g6 {[%clk 0:02:59.4]} 2. d4 {[%clk 0:03:00.1]}
2... Bg7 {[%clk 0:03:00.3]} 3. f4 {[%clk 0:02:59.7]} 3... c5 {[%clk 0:02:59.4]}
4. c3 {[%clk 0:02:59.2]} 4... cxd4 {[%clk 0:02:58.5]} 5. cxd4 {[%clk 0:02:58.6]}
5... d5 {[%clk 0:02:59.4]} 6. e5 {[%clk 0:02:58.3]} 6... Nc6 {[%clk 0:02:58.7]}
7. Nf3 {[%clk 0:02:56.1]} 7... Bg4 {[%clk 0:02:58.4]} 8. Be2 {[%clk 0:02:55.9]}
8... Nh6 {[%clk 0:02:56.7]} 9. Nc3 {[%clk 0:02:52.2]} 9... O-O {[%clk
0:02:56.2]} 10. O-O {[%clk 0:02:49.9]} 10... Nf5 {[%clk 0:02:53]} 11. h3 {[%clk
0:02:35.7]} 11... Bxf3 {[%clk 0:02:50.1]} 12. Bxf3 {[%clk 0:02:36.6]} 12... e6
{[%clk 0:02:50.4]} 13. Ne2 {[%clk 0:02:35.2]} 13... Qb6 {[%clk 0:02:48.3]} 14.
Kh2 {[%clk 0:02:31.4]} 14... Ncxd4 {[%clk 0:02:43]} 15. Nxd4 {[%clk 0:02:26.5]}
15... Nxd4 {[%clk 0:02:35.1]} 16. Bg4 {[%clk 0:02:19]} 16... h5 {[%clk
0:02:34.3]} 17. Be3 {[%clk 0:02:17.5]} 17... hxg4 {[%clk 0:02:15]} 18. Bxd4
{[%clk 0:02:17]} 18... Qd8 {[%clk 0:02:05.7]} 19. hxg4 {[%clk 0:02:04.8]} 19...
Qh4+ {[%clk 0:02:05.2]} 20. Kg1 {[%clk 0:02:04.8]} 20... Rfc8 {[%clk 0:01:55.6]}
21. Bf2 {[%clk 0:01:57.9]} 21... Qh6 {[%clk 0:01:47.8]} 22. g5 {[%clk
0:01:36.1]} 22... Qh7 {[%clk 0:01:44]} 23. Rc1 {[%clk 0:01:30.9]} 23... Bf8
{[%clk 0:01:37.1]} 24. Rxc8 {[%clk 0:01:20.9]} 24... Rxc8 {[%clk 0:01:38]} 25.
Bxa7 {[%clk 0:01:20.3]} 25... Kg7 {[%clk 0:01:34.2]} 26. Qd2 {[%clk 0:01:13.6]}
26... Qh4 {[%clk 0:00:59.3]} 27. Rc1 {[%clk 0:01:07.8]} 27... Bb4 {[%clk
0:00:57.5]} 28. Qe3 {[%clk 0:01:01.9]} 28... Rh8 {[%clk 0:00:49.7]} 29. Bb6
{[%clk 0:00:50.9]} 29... d4 {[%clk 0:00:16.1]} 30. Bxd4 {[%clk 0:00:42.6]} 30...
Qg4 {[%clk 0:00:11.3]} 31. Qf3 {[%clk 0:00:37.4]} 31... Qh4 {[%clk 0:00:08.7]}
32. Qe3 {[%clk 0:00:29.8]} 32... Qg4 {[%clk 0:00:06.6]} 33. Qf3 {[%clk
0:00:29.3]} 33... Qh4 {[%clk 0:00:06.6]} 34. Qh3 {[%clk 0:00:27.9]} 34... Qxf4
{[%clk 0:00:04.5]} 35. Qe3 {[%clk 0:00:20.8]} 35... Qh4 {[%clk 0:00:04.5]} 36.
Bb6 {[%clk 0:00:17.2]} 36... Qh1+ {[%clk 0:00:03.9]} 37. Kf2 {[%clk 0:00:17.1]}
37... Qh4+ {[%clk 0:00:04.8]} 38. Kg1 {[%clk 0:00:17]} 38... Qh1+ {[%clk
0:00:04.7]} 39. Kf2 {[%clk 0:00:17.1]} 39... Qh4+ {[%clk 0:00:05.6]} 40. Qg3
{[%clk 0:00:16.1]} 40... Qe4 {[%clk 0:00:04.7]} 41. Qf3 {[%clk 0:00:14.1]} 41...
Qh4+ {[%clk 0:00:04.5]} 42. Ke3 {[%clk 0:00:12.2]} 42... Qxg5+ {[%clk
0:00:04.7]} 43. Ke2 {[%clk 0:00:10.6]} 43... Qd2+ {[%clk 0:00:04.8]} 44. Kf1
{[%clk 0:00:08.2]} 44... Rh1+ {[%clk 0:00:05.4]} 45. Bg1 {[%clk 0:00:08.4]}
45... Qxc1+ {[%clk 0:00:05.2]} 46. Ke2 {[%clk 0:00:08.4]} 46... Rxg1 {[%clk
0:00:05.6]} 47. Qf6+ {[%clk 0:00:08]} 47... Kg8 {[%clk 0:00:06]} 48. Qd8+ {[%clk
0:00:07.8]} 48... Kh7 {[%clk 0:00:06.7]} 49. Qh4+ {[%clk 0:00:07.4]} 49... Qh6
{[%clk 0:00:07.4]} 50. Qf6 {[%clk 0:00:06.4]} 50... Rxg2+ {[%clk 0:00:06.8]} 51.
Kf1 {[%clk 0:00:05.8]} 51... Rg5 {[%clk 0:00:05.7]} 52. Qxf7+ {[%clk 0:00:05.2]}
52... Qg7 {[%clk 0:00:06.3]} 53. Qxe6 {[%clk 0:00:04.9]} 53... Rf5+ {[%clk
0:00:07.2]} 54. Ke2 {[%clk 0:00:04.3]} 54... Qxe5+ {[%clk 0:00:07.6]} 55. Qxe5
{[%clk 0:00:03.7]} 55... Rxe5+ {[%clk 0:00:08.5]} 0-1

[Event "*** Titled Tuesday Blitz"]
[Site "Chess.com"]
[Date "2021.04.27"]
[Round "4"]
[White "topin8"]
[Black "ExtremeLearner"]
[Result "1-0"]
[WhiteElo "2250"]
[BlackElo "2413"]
[TimeControl "180+1"]
[EndTime "10:40:29 PDT"]
[Termination "topin8 won by resignation"]

1. e4 {[%clk 0:02:43]} 1... c6 {[%clk 0:02:59.8]} 2. Nf3 {[%clk 0:02:42.1]} 2...
d5 {[%clk 0:03:00]} 3. Nc3 {[%clk 0:02:42.3]} 3... Bg4 {[%clk 0:02:57.9]} 4. h3
{[%clk 0:02:41.8]} 4... Bxf3 {[%clk 0:02:57.5]} 5. Qxf3 {[%clk 0:02:42.3]} 5...
e6 {[%clk 0:02:58.2]} 6. d4 {[%clk 0:02:41.4]} 6... Nf6 {[%clk 0:02:55.3]} 7.
Bd3 {[%clk 0:02:35.4]} 7... Bb4 {[%clk 0:02:42]} 8. O-O {[%clk 0:01:51.1]} 8...
Bxc3 {[%clk 0:02:20.8]} 9. bxc3 {[%clk 0:01:50.6]} 9... Qa5 {[%clk 0:02:20.8]}
10. e5 {[%clk 0:01:39.6]} 10... Nfd7 {[%clk 0:02:19]} 11. Rb1 {[%clk 0:01:34.2]}
11... b5 {[%clk 0:01:57.8]} 12. Bd2 {[%clk 0:01:33.6]} 12... Qc7 {[%clk
0:01:52]} 13. Qg4 {[%clk 0:01:30.1]} 13... Kf8 {[%clk 0:01:41.5]} 14. f4 {[%clk
0:01:15.1]} 14... h5 {[%clk 0:01:34.6]} 15. Qh4 {[%clk 0:01:15.1]} 15... g6
{[%clk 0:01:31.1]} 16. g4 {[%clk 0:01:00.4]} 16... Kg7 {[%clk 0:01:30.6]} 17. f5
{[%clk 0:00:58]} 17... hxg4 {[%clk 0:01:29.2]} 18. f6+ {[%clk 0:00:56.9]} 18...
Kg8 {[%clk 0:01:27.8]} 19. Qxg4 {[%clk 0:00:56.7]} 19... Nf8 {[%clk 0:01:21.1]}
20. Kf2 {[%clk 0:00:46.8]} 20... c5 {[%clk 0:01:18]} 21. h4 {[%clk 0:00:40.5]}
21... c4 {[%clk 0:01:14]} 22. Be2 {[%clk 0:00:39.7]} 22... Nbd7 {[%clk
0:01:02.1]} 23. Qf4 {[%clk 0:00:26.3]} 23... Nh7 {[%clk 0:00:52.3]} 24. Rg1
{[%clk 0:00:13.3]} 24... Ndxf6 {[%clk 0:00:30.7]} 25. exf6 {[%clk 0:00:12.5]}
25... Qxf4+ {[%clk 0:00:31.6]} 26. Bxf4 {[%clk 0:00:12.9]} 26... Nxf6 {[%clk
0:00:32.5]} 27. Be5 {[%clk 0:00:11.7]} 27... Kg7 {[%clk 0:00:31.3]} 28. Ke3
{[%clk 0:00:09.9]} 28... Rxh4 {[%clk 0:00:28.5]} 29. Rgf1 {[%clk 0:00:10.3]}
29... Re4+ {[%clk 0:00:28.8]} 30. Kd2 {[%clk 0:00:10.1]} 30... Rxe5 {[%clk
0:00:29.1]} 31. dxe5 {[%clk 0:00:10]} 31... Ne4+ {[%clk 0:00:30]} 32. Ke3 {[%clk
0:00:09]} 32... Nxc3 {[%clk 0:00:28.5]} 33. Rb2 {[%clk 0:00:07.7]} 33... d4+
{[%clk 0:00:26.7]} 34. Kd2 {[%clk 0:00:06.3]} 34... Ne4+ {[%clk 0:00:26.5]} 35.
Ke1 {[%clk 0:00:06.1]} 35... a6 {[%clk 0:00:24.7]} 36. Bf3 {[%clk 0:00:05.5]}
36... Rh8 {[%clk 0:00:16.8]} 37. Bxe4 {[%clk 0:00:05.4]} 37... Rh5 {[%clk
0:00:17.7]} 38. Bf3 {[%clk 0:00:03.9]} 38... Rxe5+ {[%clk 0:00:18.1]} 39. Kd1
{[%clk 0:00:04.4]} 39... Re3 {[%clk 0:00:17.2]} 40. Be2 {[%clk 0:00:04.1]} 40...
f5 {[%clk 0:00:14.9]} 41. Rb1 {[%clk 0:00:02.8]} 41... Ra3 {[%clk 0:00:14]} 42.
Ra1 {[%clk 0:00:02.1]} 42... e5 {[%clk 0:00:13.9]} 43. Rf3 {[%clk 0:00:02.5]}
43... Rxf3 {[%clk 0:00:12.1]} 44. Bxf3 {[%clk 0:00:02.3]} 44... e4 {[%clk
0:00:13]} 45. Be2 {[%clk 0:00:02.8]} 45... d3 {[%clk 0:00:09.9]} 46. cxd3 {[%clk
0:00:03.7]} 46... cxd3 {[%clk 0:00:08.1]} 47. Bxd3 {[%clk 0:00:04.1]} 47... exd3
{[%clk 0:00:08.4]} 48. Kd2 {[%clk 0:00:04.8]} 48... Kf6 {[%clk 0:00:07.4]} 49.
Rg1 {[%clk 0:00:04.5]} 49... g5 {[%clk 0:00:07.4]} 50. Kxd3 {[%clk 0:00:05.4]}
50... f4 {[%clk 0:00:06.8]} 51. Ke4 {[%clk 0:00:05.6]} 51... a5 {[%clk
0:00:06.4]} 52. a3 {[%clk 0:00:06]} 52... b4 {[%clk 0:00:06.5]} 53. axb4 {[%clk
0:00:06.3]} 53... axb4 {[%clk 0:00:07.4]} 54. Rb1 {[%clk 0:00:06.5]} 54... Kg6
{[%clk 0:00:08]} 55. Rxb4 {[%clk 0:00:06.8]} 55... Kh5 {[%clk 0:00:08.9]} 56.
Kf5 {[%clk 0:00:07]} 56... Kh4 {[%clk 0:00:08.7]} 57. Rb3 {[%clk 0:00:06.7]}
57... f3 {[%clk 0:00:01.7]} 58. Rxf3 {[%clk 0:00:05.9]} 58... g4 {[%clk
0:00:02.6]} 59. Rf4 {[%clk 0:00:05.9]} 59... Kh5 {[%clk 0:00:02.5]} 60. Rxg4
{[%clk 0:00:06.8]} 60... Kh6 {[%clk 0:00:03.4]} 61. Kf6 {[%clk 0:00:06.9]} 1-0

[Event "*** Titled Tuesday Blitz"]
[Site "Chess.com"]
[Date "2021.04.27"]
[Round "4"]
[White "MPGM"]
[Black "Dinamo81"]
[Result "0-1"]
[WhiteElo "2487"]
[BlackElo "2716"]
[TimeControl "180+1"]
[EndTime "10:40:30 PDT"]
[Termination "Dinamo81 won by checkmate"]

1. d4 {[%clk 0:02:43]} 1... d5 {[%clk 0:02:59.7]} 2. Nf3 {[%clk 0:02:41.3]} 2...
e6 {[%clk 0:03:00.1]} 3. c4 {[%clk 0:02:39.4]} 3... a6 {[%clk 0:02:59.4]} 4.
Nbd2 {[%clk 0:02:36.1]} 4... Nf6 {[%clk 0:02:51.1]} 5. g3 {[%clk 0:02:34.4]}
5... c5 {[%clk 0:02:51]} 6. cxd5 {[%clk 0:02:27.7]} 6... exd5 {[%clk 0:02:47.9]}
7. Bg2 {[%clk 0:02:27.7]} 7... Nc6 {[%clk 0:02:46.7]} 8. O-O {[%clk 0:02:26.6]}
8... Bg4 {[%clk 0:02:44.9]} 9. b3 {[%clk 0:02:19.1]} 9... cxd4 {[%clk
0:02:39.6]} 10. Bb2 {[%clk 0:02:15.6]} 10... Bc5 {[%clk 0:02:39.8]} 11. Rc1
{[%clk 0:02:11]} 11... Qe7 {[%clk 0:02:26.5]} 12. h3 {[%clk 0:01:54.9]} 12...
Bh5 {[%clk 0:02:23.8]} 13. Qc2 {[%clk 0:01:48.2]} 13... Ba7 {[%clk 0:02:19.6]}
14. Nh4 {[%clk 0:01:36]} 14... O-O {[%clk 0:02:02.6]} 15. Ndf3 {[%clk
0:01:34.9]} 15... Ne4 {[%clk 0:01:52.4]} 16. Nf5 {[%clk 0:01:26.4]} 16... Qf6
{[%clk 0:01:46.8]} 17. g4 {[%clk 0:01:12.3]} 17... Bg6 {[%clk 0:01:46.1]} 18.
N3h4 {[%clk 0:00:56.2]} 18... Rfe8 {[%clk 0:01:30.7]} 19. Qd1 {[%clk 0:00:55]}
19... Bxf5 {[%clk 0:01:15.7]} 20. Nxf5 {[%clk 0:00:54.4]} 20... g6 {[%clk
0:01:16.2]} 21. Nxd4 {[%clk 0:00:42.5]} 21... Nxd4 {[%clk 0:01:06.8]} 22. e3
{[%clk 0:00:42.1]} 22... Nf3+ {[%clk 0:01:06.8]} 23. Qxf3 {[%clk 0:00:37.6]}
23... Qxb2 {[%clk 0:01:02.5]} 24. Rc7 {[%clk 0:00:37.3]} 24... Qf6 {[%clk
0:01:00.9]} 25. Qxf6 {[%clk 0:00:34.1]} 25... Nxf6 {[%clk 0:01:01.8]} 26. Rxb7
{[%clk 0:00:34.7]} 26... Bc5 {[%clk 0:00:52.2]} 27. Rc1 {[%clk 0:00:33.8]} 27...
Rac8 {[%clk 0:00:51]} 28. Bf1 {[%clk 0:00:30.9]} 28... d4 {[%clk 0:00:35.2]} 29.
exd4 {[%clk 0:00:21.9]} 29... Bxd4 {[%clk 0:00:35.1]} 30. Rxc8 {[%clk
0:00:20.9]} 30... Rxc8 {[%clk 0:00:35]} 31. Bc4 {[%clk 0:00:16.3]} 31... a5
{[%clk 0:00:32.3]} 32. Kg2 {[%clk 0:00:12.4]} 32... Rf8 {[%clk 0:00:29.2]} 33.
f3 {[%clk 0:00:12.2]} 33... Bc3 {[%clk 0:00:26.5]} 34. g5 {[%clk 0:00:12.2]}
34... Nh5 {[%clk 0:00:25.9]} 35. h4 {[%clk 0:00:12.8]} 35... Nf4+ {[%clk
0:00:23.9]} 36. Kg3 {[%clk 0:00:12.9]} 36... Ne6 {[%clk 0:00:24.2]} 37. Kg4
{[%clk 0:00:07.7]} 37... Rd8 {[%clk 0:00:23.5]} 38. f4 {[%clk 0:00:06.4]} 38...
Rd4 {[%clk 0:00:22.7]} 39. Bxe6 {[%clk 0:00:06.9]} 39... fxe6 {[%clk 0:00:22.1]}
40. Rb8+ {[%clk 0:00:07.2]} 40... Kf7 {[%clk 0:00:19.3]} 41. Rb7+ {[%clk
0:00:08.1]} 41... Kf8 {[%clk 0:00:19.2]} 42. Rxh7 {[%clk 0:00:05.1]} 42... Bd2
{[%clk 0:00:19.4]} 43. Rh6 {[%clk 0:00:04.8]} 43... Rxf4+ {[%clk 0:00:19]} 44.
Kg3 {[%clk 0:00:04.9]} 44... Kg7 {[%clk 0:00:19.2]} 45. h5 {[%clk 0:00:04.2]}
45... gxh5 {[%clk 0:00:17.9]} 46. Rxe6 {[%clk 0:00:05.1]} 46... Rf5 {[%clk
0:00:16.6]} 47. g6 {[%clk 0:00:03.6]} 47... Rg5+ {[%clk 0:00:07.9]} 48. Kh4
{[%clk 0:00:03.7]} 48... Rc5 {[%clk 0:00:06.7]} 49. Ra6 {[%clk 0:00:03]} 49...
Be1+ {[%clk 0:00:05.9]} 50. Kh3 {[%clk 0:00:02.9]} 50... Rc3+ {[%clk 0:00:05]}
51. Kg2 {[%clk 0:00:03.5]} 51... Rc2+ {[%clk 0:00:04.9]} 52. Kh3 {[%clk
0:00:03.5]} 52... Rxa2 {[%clk 0:00:04.2]} 53. Ra7+ {[%clk 0:00:02]} 53... Kxg6
{[%clk 0:00:03.9]} 54. b4 {[%clk 0:00:02.3]} 54... Bxb4 {[%clk 0:00:03]} 55.
Ra6+ {[%clk 0:00:02.5]} 55... Kg5 {[%clk 0:00:03.3]} 56. Rb6 {[%clk 0:00:02.5]}
56... Ra3+ {[%clk 0:00:04.2]} 57. Kg2 {[%clk 0:00:02.4]} 57... Rc3 {[%clk
0:00:03.1]} 58. Rb5+ {[%clk 0:00:03.3]} 58... Kg4 {[%clk 0:00:03.5]} 59. Rb8
{[%clk 0:00:03.9]} 59... Rc2+ {[%clk 0:00:03.9]} 60. Kh1 {[%clk 0:00:04.2]}
60... h4 {[%clk 0:00:04.4]} 61. Rg8+ {[%clk 0:00:04.1]} 61... Kh3 {[%clk
0:00:04.9]} 62. Rg1 {[%clk 0:00:04.5]} 62... Rh2# {[%clk 0:00:04.8]} 0-1